{"text_format":"3","workbook":"xlsx","n_sheets":1,"sheets":["KKB_Kombi|Internet"],"not_rendered":{"images":1,"defined_names":4},"read":"whole","date_system":"1900"}

{"sheet":"KKB_Kombi|Internet","index":0,"n_rows":477,"n_cols":11,"rows_kept":477,"merged":[[0,9,0,10],[473,0,473,1],[473,2,473,4],[473,5,473,7],[473,8,473,10],[476,0,476,1],[476,2,476,4],[476,5,476,7],[476,8,476,10]]}
["Kath. Kirchenstiftung (Name) - (Gebäude) z.B. Pfarrkirche - (Maßnahme) z.B. Innenrenovierung",{"$nulls":8},"Projektnummer: xxxxxx"]
[]
["K O S T E N K O N T R O L L B L A T T   DIN 276:2018-12 | Kostengliederung nach Bauteilen u. ausführungsorientierte Gewerke_Internet"]
[]
["KG","BEZEICHNUNG","Kosten                  nachweis                   brutto","anerkannte Kosten          brutto","Sonstige          Kosten                           brutto","nicht anerkannte                  Kosten                             brutto","Anmerkungen evtl. Verweis auf Anlage","Kosten               anschlag                      brutto","Kosten             feststellung                            brutto","Sonstige Kosten\nbrutto","Anmerkungen evtl. Verweis auf Anlage"]
[]
[100,"GRUNDSTÜCK"]
[110,"Grundstückswert"]
[]
[120,"Grundstücksnebenkosten"]
[121,"  Vermessungsgebühren"]
[122,"  Gerichtsgebühren"]
[123,"  Notariatsgebühren"]
[124,"  Grunderwerbssteuer"]
[125,"  Untersuchungen"]
[126,"  Wertermittlungen",{"$nulls":5}," "]
[127,"  Genehmigungsgebühren"]
[128,"  Bodenordnung"]
[129,"  Sonstiges zur KG 120"]
[]
[130,"Rechte Dritter"]
[131,"  Abfindungen"]
[132,"  Ablösen dinglicher Rechte"]
[139,"  Sonstiges zur KG 130"]
[]
["Gesamtsumme 100",null,{"$f":"SUM(C11:C24)","v":{"v":0,"d":"0.00 €"}},{"$f":"SUM(D11:D24)","v":{"v":0,"d":"0.00 €"}},{"$f":"SUM(E11:E24)","v":{"v":0,"d":"0.00 €"}},{"$f":"SUM(F11:F24)","v":{"v":0,"d":"0.00 €"}},null,{"$f":"SUM(H11:H24)","v":{"v":0,"d":"0.00 €"}},{"$f":"SUM(I11:I24)","v":{"v":0,"d":"0.00 €"}},{"$f":"SUM(J11:J24)","v":{"v":0,"d":"0.00 €"}}]
[]
[200,"VORBEREITENDE MASSNAHMEN"]
[210,"Herrichten"]
[211,"  Sicherungsmaßnahmen"]
[212,"  Abbruchmaßnahmen"]
[213,"  Altlastbeseitigung"]
[214,"  Herrichten der Geländeoberfläche"]
[215,"  Kampfmittelräumung"]
[216,"  Kunsthistorische Funde"]
[219,"  Sonstiges zur KG 210"]
[]
[220,"Öffentliche Erschließung"]
[221,"  Abwasserentsorgung"]
[222,"  Wasserversorgung"]
[223,"  Gasversorgung"]
[224,"  Fernwärmeversorgung"]
[225,"  Stromversorgung"]
[226,"  Telekommunikation"]
[227,"  Verkehrserschließung"]
[228,"  Abfallentsorgung"]
[229,"  Sonstiges zur KG 220"]
[]
[230,"Nichtöffentliche Erschließung"]
[231,"  Abwasserentsorgung"]
[232,"  Wasserversorgung"]
[233,"  Gasversorgung"]
[234,"  Fernwärmeversorgung"]
[235,"  Stromversorgung"]
[236,"  Telekommunikation"]
[237,"  Verkehrserschließung"]
[238,"  Abfallentsorgung"]
[239,"  Sonstiges zur KG 230"]
[]
[240,"Ausgleichsmaßnahmen u. -abgaben"]
[241,"  Ausgleichsmaßnahmen"]
[242,"  Ausgleichsabgaben"]
[249,"  sonstiges zur KG 240"]
[]
[250,"Übergangsmaßnahmen"]
[251,"  Bauliche Maßnahmen"]
[252,"  Organisatorische Maßnahmen"]
[259,"  Sonstiges zur KG 250"]
[]
["Gesamtsumme 200",null,{"$f":"SUM(C30:C67)","v":{"v":0,"d":"0.00 €"}},{"$f":"SUM(D30:D67)","v":{"v":0,"d":"0.00 €"}},{"$f":"SUM(E30:E67)","v":{"v":0,"d":"0.00 €"}},{"$f":"SUM(F30:F67)","v":{"v":0,"d":"0.00 €"}},null,{"$f":"SUM(H30:H67)","v":{"v":0,"d":"0.00 €"}},{"$f":"SUM(I30:I67)","v":{"v":0,"d":"0.00 €"}},{"$f":"SUM(J30:J67)","v":{"v":0,"d":"0.00 €"}}]
[]
[300,"BAUWERK | BAUKONSTRUKTIONEN"]
[310,"Baugrube / Erdbau"]
[311,"  Herstellung"]
[312,"  Umschließung"]
[313,"  Wasserhaltung"]
[314,"  Vortrieb"]
[319,"  Sonstiges zur KG 310"]
[]
[320,"Gründung / Unterbau"]
[321,"  Baugrundverbesserung"]
[322,"  Flachgründungen und Bodenplatten"]
[323,"  Tiefgründungen"]
[324,"  Gründungsbeläge"]
[325,"  Abdichtungen und Bekleidungen"]
[326,"  Drainagen"]
[329,"  Sonstiges zur KG 320"]
[330,"Außenwände / Vertikale Baukonstruktionen, außen"]
[331,"  Tragende Außenwände"]
[332,"  Nichttragende Außenwände"]
[333,"  Außenstützen"]
[334,"  Außenwandöffnungen"]
[335,"  Außenwandbekleidungen, außen"]
[336,"  Außenwandbekleidungen, innen"]
[337,"  Elementierte Außenwandkonstruktion"]
[338,"  Lichtschutz zur KG 330"]
[339,"  Sonstiges zur KG 330"]
[]
[340,"Innenwände / Vertikale Baukonstruktionen, innen"]
[341,"  Tragende Innenwände"]
[342,"  Nichttragende Innenwände"]
[343,"  Innenstützen"]
[344,"  Innenwandöffnungen"]
[345,"  Innenwandbekleidungen"]
[346,"  Elementierte Innenwandkonstruktionen"]
[347,"  Lichtschutz zur GK 340"]
[349,"  Sonstiges zur KG 340"]
[]
[350,"Decken / Horizontale Baukonstruktionen"]
[351,"  Deckenkonstruktionen"]
[352,"  Deckenöffnungen"]
[353,"  Deckenbeläge"]
[354,"  Deckenbekleidungen"]
[355,"  Elementierte Deckenkonstruktionen"]
[359,"  Sonstiges zur KG 350"]
[]
[360,"Dächer"]
[361,"  Dachkonstruktionen"]
[362,"  Dachöffnungen"]
[363,"  Dachbeläge"]
[364,"  Dachbekleidungen"]
[365,"  Elementierte Dachkonstruktionen"]
[366,"  Lichtschutz zur KG 360"]
[369,"  Sonstiges zur KG 360"]
[]
[null,"Ausführungsorient gegliederte Leistungsbereiche"]
["STLB","Grundkonstruktionen"]
["30 01","Baumeisterarbeiten (übergeordnet 02-13), oder:"]
["30 02","Erdarbeiten"]
["30 06","Bohr,-Verbau-, Ramm- und Einpressarbeiten, Anker, Pfähle u. Schlitzwände (Spezialtiefbau)"]
["30 08","Wasserhaltungsarbeiten"]
["30 10","Drain- und Versickerarbeiten"]
["30 12","Mauerarbeiten"]
["30 13","Beton- und Stahlbetonarbeiten"]
["30 14","Naturwerkstein-, Betonwerksteinarbeiten"]
["30 16","Zimmer- und Holzbauarbeiten"]
["30 17","Stahlbauarbeiten "]
["30 18","Abdichtungsarbeiten"]
["30 20","Dachdeckungsarbeiten"]
["30 21","Dachabdichtungsarbeiten"]
["30 22","Klempnerarbeiten"]
["30 23","Putz- und Stuckarbeiten, Wärmedämmsysteme"]
["30 24","Fliesen- und Plattenarbeiten"]
["30 25","Estricharbeiten"]
["30 26","Fenster, Außentüren"]
["   30 27  ","Tischlerarbeiten"]
["30 28","Parkett- und Holzpflasterarbeiten"]
["30 29","Beschlagarbeiten"]
["30 30","Rolladenarbeiten,Rollabschlüsse,Sektionaltor\nSonnenschutz- und Verdunkelungsanlagen"]
["30 31","Metallbau- und Schlosserarbeiten"]
["30 32","Verglasungsarbeiten"]
["30 34","Maler- und Lackierarbeiten"]
["   30 34.1","Raumschale nicht restauratorisch"]
["30 35","Korrosionschutzarbeiten an Stahl- und Aluminiumbauten (-konstruktionen)"]
["30 36","Bodenbelagarbeiten"]
["30 37","Tapezierarbeiten"]
["30 38","Vorgehängte hinterlüftete Fassaden"]
["30 39","Trockenbauarbeiten"]
[null,"Sonstiges zur KG 30 01 - 30 39"]
[]
[370,"Infrastrukturanlagen"]
[371,"  Anlagen für den Straßenverkehr"]
[372,"  Anlagen für den Schienenverkehr"]
[373,"  Anlagen für den Flugverkehr"]
[374,"  Anlagen des Wasserbaus"]
[375,"  Anlage der Abwasserentsorgung"]
[376,"  Analge der Wasserversorgung"]
[377,"  Anlage der Energie- und Informationsversorgung"]
[378,"  Anlagen der Abfallentsorgung"]
[379,"  Sonstiges zur KG 370"]
[]
[380,"Baukonstruktive Einbauten"]
[381,"  Allgemeine Einbauten"]
[null,"    Einbaumöbel"]
[null,"    Einbauküche"]
[null,"    Bühnenelemente"]
[null,"    Garderoben"]
["  ","    Laiengestühl (Bankpodien, Sedilien"]
[382,"  Besondere Einbauten | nicht restauratorisch"]
[null,"    Emporen"]
[null,"    Glockenstuhl - Glocken"]
[null,"    Turmuhr - Zifferblätter"]
[383,"  Landschaftsgestalterische Einbauten"]
[384,"  Mechanische Einbauten"]
[385,"  Einbauten in Konstruktionen des Ingenieurbaus"]
[386,"  Orientierungs- und Informationssysteme"]
[387,"  Schutzeinbauten"]
[389,"  Sonstiges zur KG 380"]
[]
[390,"Sonstige Maßnahmen für Baukonstruktionen"]
[391,"  Baustelleneinrichtung"]
[392,"  Gerüste"]
[393,"  Sicherungsmaßnahmen"]
[394,"  Abbruchmaßnahmen"]
[395,"  Instandsetzungen"]
[396,"  Materialentsorgung"]
[397,"  Zusätzliche Maßnahmen"]
[398,"  Provisorische Baukonstruktionen"]
[399,"  Sonstiges zur KG 390"]
[]
["Gesamtsumme 300",null,{"$f":"SUM(C128:C199)","v":{"v":0,"d":"0.00 €"}},{"$f":"SUM(D128:D199)","v":{"v":0,"d":"0.00 €"}},{"$f":"SUM(E128:E199)","v":{"v":0,"d":"0.00 €"}},{"$f":"SUM(F128:F199)","v":{"v":0,"d":"0.00 €"}},null,{"$f":"SUM(H128:H199)","v":{"v":0,"d":"0.00 €"}},{"$f":"SUM(I128:I199)","v":{"v":0,"d":"0.00 €"}},{"$f":"SUM(J128:J199)","v":{"v":0,"d":"0.00 €"}}]
[]
[400,"BAUWERK - TECHNISCHE ANLAGEN"]
[410,"Abwasser-, Wasser-, Gasanlagen"]
[411,"  Abwasseranlagen"]
[412,"  Wasseranlagen"]
[413,"  Gasanlagen"]
[419,"  Sonstiges zur KG 410"]
[]
[420,"Wärmeversorgungsanlagen"]
[421,"  Wärmeerzeugungsanlagen"]
[422,"  Wärmeverteilnetze"]
[423,"  Raumheizflächen"]
[429,"  Sonstiges zu KG 420"]
[]
[430,"Raumlufttechnische Anlagen"]
[431,"  Lüftungsanlagen"]
[432,"  Teilklimaanlagen"]
[433,"  Klimaanlagen"]
[434,"  Kälteanlagen"]
[439,"  Sonstiges zur KG 430"]
[]
[440,"Elektrische Anlagen"]
[441,"  Hoch- und Mittelspannungsanlagen"]
[442,"  Eigenstromversorgungsanlagen"]
[443,"  Niederspannungsschaltanlagen"]
[444,"  Niederspannungsinstallationsanlagen"]
[445,"  Beleuchtungsanlagen"]
[446,"  Blitzschutz- und Erdungsanlagen"]
[449,"  Sonstiges zur KG 440"]
[]
[450,"Kommunikations-, sicherheits- u. \ninformationstechnische Anlagen"]
[451,"  Telekommunikationsanlagen"]
[452,"  Such- und Signalanlagen"]
[453,"  Zeitdienstanlagen"]
[454,"  Elektroakustische Anlagen"]
[455,"  Audiovisuelle Medien- und Antennenanlagen"]
[456,"  Gefahrenmelde- und Alarmanlagen"]
[457,"  Datenübertragungsnetze"]
[459,"  Sonstiges zur KG 450"]
[]
[460,"Förderanlagen"]
[461,"  Aufzugsanlagen"]
[462,"  Fahrtreppen, Fahrsteige"]
[463,"  Befahranlagen"]
[464,"  Transportanlagen"]
[465,"  Krananlagen"]
[466,"  Hydraulikanlagen"]
[469,"  Sonstiges zur KG 460"]
[]
[470,"Nutzungsspezifische und \nverfahrenstechnische Anlagen"]
[471,"  Küchentechnische Anlagen"]
[472,"  Wäscherei-, Reinigungs-u. badtechn. Anlagen"]
[473,"  Medienversorgungsanlagen, Medizin- und\n  labortechnische Anlagen"]
[474,"  Feuerlöschanlagen"]
[475,"  Prozesswärme-, kälte- und luftanlagen"]
[476,"  Weitere nutzungsspezifische Anlagen"]
[477,"  Verfahrenstechnische Anlagen, Wasser,\n  Abwasser und Gase"]
[478,"  Verfahrenstechnische Anlagen, Feststoffe, \n  Wertstoffe und Abfälle"]
[479,"  Sonstiges zur KG 470"]
[]
[480,"Gebäude- und Anlagenautomation"]
[481,"  Automationseinrichtungen"]
[482,"  Schaltschränke, Automationsschwerpunkte"]
[483,"  Automationsmanagement"]
[484,"  Kabel, Leitungen und Verlegesysteme"]
[485,"  Datenübertragungsnetze"]
[489,"  Sonstiges zur KG 480"]
[]
[490,"Sonstige Maßnahmen für techn. Anlagen"]
[491,"  Baustelleneinrichtung"]
[492,"  Gerüste"]
[493,"  Sicherungsmaßnahmen"]
[494,"  Abbruchmaßnahmen"]
[495,"  Instandsetzungen"]
[496,"  Materialentsorgung"]
[497,"  Zusätzliche Maßnahmen"]
[498,"  Provisorische technische Anlagen"]
[499,"  Sonstiges zur KG 490"]
[]
["Gesamtsumme 400",null,{"$f":"SUM(C205:C279)","v":{"v":0,"d":"0.00 €"}},{"$f":"SUM(D205:D279)","v":{"v":0,"d":"0.00 €"}},{"$f":"SUM(E205:E279)","v":{"v":0,"d":"0.00 €"}},{"$f":"SUM(F205:F279)","v":{"v":0,"d":"0.00 €"}},null,{"$f":"SUM(H205:H279)","v":{"v":0,"d":"0.00 €"}},{"$f":"SUM(I205:I279)","v":{"v":0,"d":"0.00 €"}},{"$f":"SUM(J205:J279)","v":{"v":0,"d":"0.00 €"}}]
[]
[500,"AUSSENANLAGEN UND FREIFLÄCHEN"]
[510,"Erdbau"]
[511,"  Herstellung "]
[512,"  Umschließung"]
[513,"  Wasserhaltung"]
[514,"  Vortrieb"]
[519,"  Sonstiges zur KG 510"]
[]
[520,"Gründung, Unterbau"]
[521,"  Baugrundverbesserung"]
[522,"  Gründungen und Bodenplatten"]
[523,"  Gründungsbeläge"]
[524,"  Abdichtungen und Bekleidungen"]
[525,"  Dränagen"]
[529,"  Sonstiges zur KG 520"]
[]
[530,"Oberbau, Deckschichten"]
[531,"  Wege"]
[532,"  Straßen"]
[533,"  Plätze, Höfe, Terrassen"]
[534,"  Stellplätze"]
[535,"  Sportplatzflächen"]
[536,"  Spielplatzflächen"]
[537,"  Gleisanlagen"]
[538,"  Flugplatzflächen"]
[539,"  Sonstiges zur KG 530"]
[]
[540,"Baukonstruktionen"]
[541,"  Einfriedungen"]
[542,"  Schutzkonstruktionen"]
[543,"  Wandkonstruktionen"]
[544,"  Rampen, Treppen, Tribünen"]
[545,"  Überdachungen"]
[546,"  Stege"]
[547,"  Kanal- und Schachtkonstruktionen"]
[548,"  Wasserbecken"]
[549,"  Sonstiges zur KG 540"]
[]
[550,"Technische Anlagen"]
[551,"  Abwasseranlagen"]
[552,"  Wasseranlagen"]
[553,"  Anlagen für Gase und Flüssigkeiten"]
[554,"  Wärmeversorgungsanlagen"]
[555,"  Raumlufttechnische Anlagen"]
[556,"  Elektrische Anlagen"]
[557,"  Kommunikations-, sicherheits- und \n  informationstechnische Anlagen, Automation"]
[558,"  Nutzungsspezifische Anlagen"]
[559,"  Sonstiges zur KG 550"]
[]
[560,"Einbauten in Außenanlagen und Freiflächen"]
[561,"  Algemeine Einbauten"]
[562,"  Besondere Einbauten"]
[563,"  Orientierungs- und Informationssysteme"]
[569,"  Sonstiges zur KG 560"]
[]
[570,"Vegetationsflächen"]
[571,"  Vegetationstechnische Bodenbearbeitung"]
[572,"  Sicherungsbauweisen"]
[573,"  Pflanzflächen"]
[574,"  Rasen-  und Saatflächen"]
[579,"  Sonstiges zur KG 570"]
[]
[580,"Wasserflächen"]
[581,"  Befestigungen"]
[582,"  Abdichtungen"]
[583,"  Bepflanzungen"]
[589,"  Sonstiges zur KG 580"]
[]
[590,"Sonstige Maßnahmen für Außenanlagen\nund Freiflächen"]
[591,"  Baustelleneinrichtung"]
[592,"  Gerüste"]
[593,"  Sicherungsmaßnahmen"]
[594,"  Abbruchmaßnahmen"]
[595,"  Instandsetzungen"]
[596,"  Materialentsorgung"]
[597,"  Zusätzliche Maßnahmen"]
[598,"  Provisorische Außenanlagen und Freiflächen"]
[599,"  Sonstiges zur KG 590"]
[]
["Gesamtsumme 500",null,{"$f":"SUM(C285:C360)","v":{"v":0,"d":"0.00 €"}},{"$f":"SUM(D285:D360)","v":{"v":0,"d":"0.00 €"}},{"$f":"SUM(E285:E360)","v":{"v":0,"d":"0.00 €"}},{"$f":"SUM(F285:F360)","v":{"v":0,"d":"0.00 €"}},null,{"$f":"SUM(H285:H360)","v":{"v":0,"d":"0.00 €"}},{"$f":"SUM(I285:I360)","v":{"v":0,"d":"0.00 €"}},{"$f":"SUM(J285:J360)","v":{"v":0,"d":"0.00 €"}}]
[]
[600,"AUSSTATTUNG UND KUNSTWERKE"]
[610,"Allgemeine Ausstattung"]
[611,"  Allgemeine Ausstattung"]
["  611.1","    Lose Möblierung"]
["  611.2","    Textilien (Fensterbehänge)"]
["  611.3","    Sitz- und Kniebankauflagen"]
[]
[620,"Besondere Ausstattung"]
["  620.1","   Orgelgehäuse"]
["  620.2","   Orgelprospekt"]
["  620.3","   Orgelwerk"]
[621,"   Sonstiges zu KG 620"]
[]
[630,"Informationstechnische Ausstattung"]
[631,"  Schriftenstand"]
[632,"  Informationstafel"]
[]
[640,"Künstlerische Ausstattung"]
[641,"Kunstobjekte"]
["  641.1","  Liturgische Orte (Altar, Ambo, Taufbecken)"]
["  641.2","  Ausstattung (Altaraufbauten, Kanzel..)"]
["  641.3","  Bewegliche Ausstattung (Skulpturen, Gemälde)"]
["  641.4","  Textilien"]
[]
[642,"Künstlerische Gestaltung des Bauwerks"]
["  642.1","    Malereien und Fresken"]
["  642.2","    Stuckarbeiten"]
["  642.3","    Stuckmarmor"]
["  642.4","    Holzarbeiten"]
["  642.5","    Natursteinarbeiten"]
["  642.6","    Metallarbeiten"]
["  642.7","    Glasarbeiten"]
[643,"  Künstl. Gestaltung der Außenanlagen \n  und Freiflächen"]
[649,"  Sonstiges zur KG 640"]
[]
["Gesamtsumme 600",null,{"$f":"SUM(C366:C397)","v":{"v":0,"d":"0.00 €"}},{"$f":"SUM(D366:D397)","v":{"v":0,"d":"0.00 €"}},{"$f":"SUM(E366:E397)","v":{"v":0,"d":"0.00 €"}},{"$f":"SUM(F366:F397)","v":{"v":0,"d":"0.00 €"}},null,{"$f":"SUM(H366:H397)","v":{"v":0,"d":"0.00 €"}},{"$f":"SUM(I366:I397)","v":{"v":0,"d":"0.00 €"}},{"$f":"SUM(J366:J397)","v":{"v":0,"d":"0.00 €"}}]
[]
["Zwischensumme 100-600",null,{"$f":"SUM(C399+C362+C281+C201+C70+C26)","v":{"v":0,"d":"0.00 €"}},{"$f":"SUM(D399+D362+D281+D201+D70+D26)","v":{"v":0,"d":"0.00 €"}},{"$f":"SUM(E399+E362+E281+E201+E70+E26)","v":{"v":0,"d":"0.00 €"}},{"$f":"SUM(F399+F362+F281+F201+F70+F26)","v":{"v":0,"d":"0.00 €"}},null,{"$f":"SUM(H399+H362+H281+H201+H70+H26)","v":{"v":0,"d":"0.00 €"}},{"$f":"SUM(I399+I362+I281+I201+I70+I26)","v":{"v":0,"d":"0.00 €"}},{"$f":"SUM(J399+J362+J281+J201+J70+J26)","v":{"v":0,"d":"0.00 €"}}]
[]
[700,"BAUNEBENKOSTEN"]
[710,"Bauherrenaufgaben"]
[711,"  Projektleitung"]
[712,"  Bedarfsplanung"]
[713,"  Projektsteuerung"]
[714," Sicherheits- und Gesundheitsschutzkoordination"]
[715,"  Vergabeverfahren"]
[719,"  Sonstiges zur KG 710"]
[]
[720,"Vorbereitung der Objektplanung"]
[721,"  Untersuchungen"]
[722,"  Wertermittlungen"]
[723,"  Städtebauliche Leistungen"]
[724,"  Landschaftsplanerische Leistungen"]
[725,"  Wettbewerbe"]
[729,"  Sonstiges zur KG 720"]
[]
[730,"Objektplanung"]
[731,"  Gebäude und Innenräume "]
[732,"  Freianlagen"]
[733,"  Ingenieurbauwerke"]
[734,"  Verkehrsanlagen"]
[739,"  Sonstiges zur KG 730"]
[]
[740,"Fachplanung"]
[741,"  Tragwerksplanung"]
[742,"  Technische Ausrüstung HLS"]
[null,"  Technische Ausrüstung E"]
[743,"  Bauphysik"]
[744,"  Geotechnik"]
[745,"  Ingenieurvermessung"]
[746,"  Lichttechnik, Tageslichttechnik"]
[747,"  Brandschutz"]
[748,"  Altlasten, Kampfmittel, kulturhistorische Funde"]
[749,"  Restauratorenleistung (Sonstiges zur KG 740)"]
[]
[750,"Künstlerische Leistungen"]
[751,"  Kunstwettbewerbe"]
[752,"  Honorare"]
[759,"  Sonstiges zur KG 750"]
[]
[760,"Allgemeine Baunebenkosten"]
[761,"  Gutachten und Beratung"]
[762,"  Prüfungen, Genehmigungen, Abnahmen"]
[763,"  Bewirtschaftungskosten"]
[764,"  Bemusterungskosten"]
[765,"  Betriebskosten nach Abnahme "]
[766,"  Versicherungen"]
[769,"  Sonstiges zur KG 760"]
[]
[790,"Sonstige Baunebenkosten"]
[791,"  Bestandsdokumentatiom"]
[799,"  Sonstiges zur KG 790"]
[]
["Gesamtsumme 700",null,{"$f":"SUM(C405:C455)","v":{"v":0,"d":"0.00 €"}},{"$f":"SUM(D405:D455)","v":{"v":0,"d":"0.00 €"}},{"$f":"SUM(E405:E455)","v":{"v":0,"d":"0.00 €"}},{"$f":"SUM(F405:F455)","v":{"v":0,"d":"0.00 €"}},null,{"$f":"SUM(H405:H455)","v":{"v":0,"d":"0.00 €"}},{"$f":"SUM(I405:I455)","v":{"v":0,"d":"0.00 €"}},{"$f":"SUM(J405:J455)","v":{"v":0,"d":"0.00 €"}}]
[]
[800,"Finanzierung"]
[810,"Finanzierungsnebenkosten"]
[820,"Fremdkapitalzinsen"]
[830,"Eigenkapitalzinsen"]
[840,"Bürgschaften"]
[890,"Sonstige Finanzierungskosten"]
[]
[]
["Gesamtsumme 800",null,{"$f":"SUM(C460:C464)","v":{"v":0,"d":"0.00 €"}},{"$f":"SUM(D460:D464)","v":{"v":0,"d":"0.00 €"}},{"$f":"SUM(E460:E464)","v":{"v":0,"d":"0.00 €"}},{"$f":"SUM(F460:F464)","v":{"v":0,"d":"0.00 €"}},null,{"$f":"SUM(H460:H464)","v":{"v":0,"d":"0.00 €"}},{"$f":"SUM(I460:I464)","v":{"v":0,"d":"0.00 €"}},{"$f":"SUM(J460:J464)","v":{"v":0,"d":"0.00 €"}}]
[]
[]
["Gesamtkosten 100 - 800",null,{"$f":"C467+C457+C399+C362+C281+C201+C70+C26","v":{"v":0,"d":"0.00 €"}},{"$f":"D467+D457+D399+D362+D281+D201+D70+D26","v":{"v":0,"d":"0.00 €"}},{"$f":"E467+E457+E399+E362+E281+E201+E70+E26","v":{"v":0,"d":"0.00 €"}},{"$f":"F467+F457+F399+F362+F281+F201+F70+F26","v":{"v":0,"d":"0.00 €"}},null,{"$f":"H467+H457+H399+H362+H281+H201+H70+H26","v":{"v":0,"d":"0.00 €"}},{"$f":"I467+I457+I399+I362+I281+I201+I70+I26","v":{"v":0,"d":"0.00 €"}},{"$f":"J467+J457+J399+J362+J281+J201+J70+J26","v":{"v":0,"d":"0.00 €"}}]
[]
[]
[]
["Name Architekt/Planer",null,"Ort",null,null,"Datum",null,null,"Unterschrift"]
[]
[]
["Name \nDiözesanarchitekt/in od. Diözesanbauingenieur",null,"Regensburg",null,null,"Datum \nProjektnummer:\nKürzel Diözesanarchitekt/in- Diözesanbauingenieur",null,null,"Unterschrift"]